[Event "3rd President Cup-A 2024"]
[Site "Tashkent"]
[Date "2024.11.29"]
[Round "9.11"]
[White "Sankalp Gupta"]
[Black "Mamedov, Edgar"]
[Result "1/2-1/2"]
[ECO "B30"]
[WhiteElo "2539"]
[BlackElo "2448"]
[Annotator "TA"]
[PlyCount "93"]
[EventDate "2024.11.22"]
[EventType "swiss"]
[EventCountry "UZB"]
[SourceTitle "playchess.com"]
[Source "ChessBase"]
[SourceQuality "1"]
[TimeControl "5400+30"]

{[%evp 9,93,17,7,12,4,0,2,11,22,18,11,0,10,22,25,34,22,27,30,25,45,41,42,0,0,0,13,-14,0,-78,-30,-41,-45,-72,-37,-85,-35,-33,-37,-38,-31,-25,17,8,12,0,0,0,0,0,0,0,0,-12,-13,-15,-23,-23,-23,-6,-6,-6,-5,-5,0,-12,0,-12,0,0,0,0,0,0,0,0,0,0,0,0,0,0,0,0,0,0]} 1. e4 {[%emt 0:01:19]} c5 {[%emt 0:00:18]} 2. Nf3 {[%emt 0:00:03]} Nc6 {[%emt 0:00:11]} 3. Bb5 {[%emt 0:00:03]} e6 {[%emt 0:00:12]} 4. Bxc6 {[%emt 0:00:04]} bxc6 {[%emt 0:00:13]} 5. d3 {[%emt 0:00:06]} Ne7 {[%emt 0:01:03]} 6. Nbd2 {[%emt 0:00:22]} Qc7 {[%emt 0:04:00]} 7. h4 {[%emt 0:00:44]} e5 {[%emt 0:01:31]} 8. h5 {[%emt 0:00:20]} d6 {[%emt 0:01:38][%cal Bd7d6,Bd6d5][%mdl 32]} 9. Nc4 {[%emt 0:11:19]} f6 {[%emt 0:05:17]} 10. Nh4 {[%emt 0:10:54]} d5 {[%emt 0:12:52]} 11. Ne3 {[%emt 0:00:34]} g5 {[%emt 0:02:54]} 12. Nhf5 {[%emt 0:03:05]} Nxf5 {[%emt 0:01:26]} 13. Nxf5 {[%emt 0:00:19]} Bxf5 {[%emt 0:01:44]} 14. exf5 {[%emt 0:00:09]} O-O-O {[%emt 0:02:06]} 15. O-O {[%emt 0:02:16]} Bd6 {[%emt 0:05:30]} 16. Qg4 {[%emt 0:01:11]} Rhe8 {[%emt 0:01:02]} 17. Re1 {[%emt 0:00:20]} Qa5 {[%emt 0:04:24]} 18. c3 {[%emt 0:04:41]} Qa6 {[%emt 0:06:34]} 19. Re3 {[%emt 0:07:17] [#]} (19. Qe2 $11) 19... Bc7 {[%emt 0:12:53]} (19... d4 $1 $17 {[%cal Rd4e3]} 20. Rh3 e4 21. dxe4 d3) 20. Bd2 {[%emt 0:10:46]} d4 {[%emt 0:04:23]} 21. Rh3 {[%emt 0:02:39]} Qb5 {[%emt 0:02:58]} 22. Rb1 {[%emt 0:06:43]} (22. b3 $15) 22... c4 {[%emt 0:05:34]} ({Black should play} 22... e4 $17 {Strongly threatening ...e3.} 23. c4 (23. dxe4 d3 $17) 23... Qa4 24. dxe4 d3 (24... Qxa2 $2 25. Qd1 $17) (24... Qxc4 25. Rc1 $17)) 23. dxc4 $15 {[%emt 0:00:40]} Qxc4 {[%emt 0:00:14]} 24. b3 {[%emt 0:00:07]} Qa6 {[%emt 0:00:28]} 25. a4 {[%emt 0:00:37]} dxc3 {[%emt 0:01:18]} 26. Bxc3 {[%emt 0:00:13]} Rd3 {[%emt 0:00:29]} 27. Rd1 {[%emt 0:05:42]} Rd5 {[%emt 0:03:58]} 28. Rc1 {[%emt 0:03:43]} Red8 {[%emt 0:00:59]} 29. Re3 {[%emt 0:01:01][%cal Bh3e3,Be3e1,Be1e2][%mdl 32]} Bb6 {[%emt 0:02:57]} 30. Ree1 {[%emt 0:03:26]} Qd3 {[%emt 0:02:14]} 31. Re2 {[%emt 0:05:56]} Rc5 {[%emt 0:04:03]} 32. Re3 {[%emt 0:09:16] [#]} Rxc3 {[%emt 0:04:36]} 33. Rxc3 {[%emt 0:00:03]} Qd1+ {[%emt 0:00:04]} 34. Qxd1 {[%emt 0:00:06]} Rxd1+ {[%emt 0:00:02] The position is equal.} 35. Kh2 {[%emt 0:00:02]} Bxe3 {[%emt 0:00:06]} 36. fxe3 $11 {[%emt 0:02:10][%mdl 4096] Endgame. KR-KR} Kc7 {[%emt 0:02:20]} 37. Kg3 {[%emt 0:01:44]} Kd6 {[%emt 0:02:35]} 38. Kf3 {[%emt 0:01:03]} Rd2 {[%emt 0:01:03][%cal Oe5e4]} 39. b4 {[%emt 0:01:47]} e4+ {[%emt 0:02:41]} 40. Kxe4 {[%emt 0:00:37] Rd3+ would now be deadly.} Rxg2 {[%emt 0:00:02] Threatens to win with ...Rg4+.} 41. b5 {[%emt 0:02:23]} cxb5 {[%emt 0:01:29]} 42. axb5 {[%emt 0:00:02]} Rg4+ {[%emt 0:00:16]} 43. Kf3 {[%emt 0:00:01]} Rh4 {[%emt 0:00:43]} 44. Rc6+ {[%emt 0:01:15]} Ke5 {[%emt 0:00:02]} 45. Rc5+ {[%emt 0:00:27]} Kd6 {[%emt 0:00:04]} 46. Rc6+ {[%emt 0:00:01]} Ke5 {[%emt 0:00:43]} 47. Rc5+ {[%emt 0:00:43] Weighted Error Value: White=0.10 (very precise) /Black=0.07 (flawless) .  Mistake:       	White=2     	Black=2      Inaccurate:     	White=3     	Black=2      OK:         	White=14    	Black=17     Best:        	White=3     	Black=3} 1/2-1/2

[Event "3rd President Cup-A 2024"]
[Site "Tashkent"]
[Date "2024.11.29"]
[Round "9.12"]
[White "Raja Rithvik R"]
[Black "Daghli, Arash"]
[Result "1/2-1/2"]
[ECO "E04"]
[WhiteElo "2528"]
[BlackElo "2435"]
[Annotator "TA"]
[PlyCount "69"]
[EventDate "2024.11.22"]
[EventType "swiss"]
[EventCountry "UZB"]
[SourceTitle "playchess.com"]
[Source "ChessBase"]
[SourceQuality "1"]
[TimeControl "5400+30"]

{[%evp 12,69,29,18,18,0,13,18,11,8,23,11,8,-5,0,0,0,-4,31,19,24,25,28,0,0,0,0,0,0,0,0,0,0,0,25,26,19,39,56,40,50,50,42,0,0,0,0,0,12,0,7,0,0,0,0,0,0,0,0,0]} 1. d4 {[%emt 0:00:05]} d5 {[%emt 0:01:50]} 2. c4 {[%emt 0:00:09]} e6 {[%emt 0:00:06]} 3. Nf3 {[%emt 0:01:39]} Nf6 {[%emt 0:00:10]} 4. g3 {[%emt 0:00:04]} dxc4 {[%emt 0:00:11]} 5. Bg2 {[%emt 0:00:05]} Bb4+ {[%emt 0:00:19]} 6. Bd2 {[%emt 0:00:06]} a5 {[%emt 0:00:07]} 7. O-O {[%emt 0:01:26]} O-O {[%emt 0:00:25]} 8. a3 {[%emt 0:01:26]} Bxd2 {[%emt 0:01:12]} 9. Nbxd2 {[%emt 0:00:05]} b5 {[%emt 0:00:23]} 10. b3 {[%emt 0:00:06]} cxb3 {[%emt 0:00:41]} 11. Qxb3 {[%emt 0:00:06]} c6 {[%emt 0:01:46]} 12. Rac1 {[%emt 0:01:15]} Bb7 {[%emt 0:02:28]} 13. Qb2 {[%emt 0:00:10]} Nbd7 {[%emt 0:00:49]} 14. Ne1 {[%emt 0:00:30]} e5 {[%emt 0:14:01]} 15. Bxc6 {[%emt 0:36:29]} Bxc6 {[%emt 0:01:09]} 16. Rxc6 {[%emt 0:00:05]} Qe7 {[%emt 0:04:31]} 17. Qxb5 {[%emt 0:11:05]} exd4 {[%emt 0:00:48][%cal Oa5a4]} 18. Nef3 {[%emt 0:04:06]} Qxa3 {[%emt 0:06:34]} 19. Nc4 {[%emt 0:01:42]} Qe7 {[%emt 0:06:27]} 20. Nxd4 {[%emt 0:01:40]} ({Of course not} 20. Nxa5 Rfb8 21. Qf5 (21. Nb7 $2 Ra7 $19) 21... Qxe2 22. Nxd4 Qb2 $17) 20... Qe4 {[%emt 0:00:31]} 21. e3 {[%emt 0:07:25][%cal Of2f3]} Rfb8 {[%emt 0:00:20]} 22. Qa4 {[%emt 0:01:36][%cal Oc4d6]} Ne5 {[%emt 0:07:51]} 23. Nxe5 {[%emt 0:11:47]} Qxe5 {[%emt 0:00:08]} 24. Rc4 {[%emt 0:00:38] [#] aiming for Nc6.} Qh5 {[%emt 0:11:33]} 25. Rfc1 {[%emt 0:02:34]} h6 {[%emt 0:11:15]} 26. Rc5 {[%emt 0:04:47]} Rb1 {[%emt 0:02:19]} 27. Rxb1 {[%emt 0:02:47][%cal Bc1b1,Bb1b5,Bb5f5][%mdl 32]} (27. Rxh5 {with more complications.} Rxc1+ 28. Kg2 Nxh5 29. e4) 27... Qxc5 {[%emt 0:00:08] The position is equal.} 28. Rb5 {[%emt 0:00:35]} Qc3 {[%emt 0:03:11]} 29. Kg2 {[%emt 0:01:34]} Qd2 {[%emt 0:09:01] [#] White must now prevent ...Ng4.} 30. Rf5 {[%emt 0:03:32]} Qc3 {[%emt 0:06:01]} 31. h3 {[%emt 0:00:56]} Qc7 {[%emt 0:02:13]} 32. Nb3 {[%emt 0:03:21][%cal Rb3a5]} Qb7+ {[%emt 0:02:54]} 33. Kh2 {[%emt 0:00:25]} Qe4 {[%emt 0:01:16]} 34. Qxe4 {[%emt 0:02:39]} (34. Rxa5 $2 {loses.} Qxa4 35. Rxa4 Rxa4 $19) 34... Nxe4 {[%emt 0:00:03]} 35. Rxa5 {[%emt 0:00:26] Weighted Error Value: White=0.07 (flawless) /Black=0.04 (flawless) .  Inaccurate:     	White=2     	Black=1      OK:         	White=12    	Black=14     Best:        	---       	Black=2} 1/2-1/2

[Event "3rd President Cup-A 2024"]
[Site "Tashkent"]
[Date "2024.11.29"]
[Round "9.13"]
[White "Pingin, Artem"]
[Black "Atabayev, Saparmyrat"]
[Result "1/2-1/2"]
[ECO "B48"]
[WhiteElo "2447"]
[BlackElo "2520"]
[Annotator "TA"]
[PlyCount "206"]
[EventDate "2024.11.22"]
[EventType "swiss"]
[EventCountry "UZB"]
[SourceTitle "playchess.com"]
[Source "ChessBase"]
[SourceQuality "1"]
[TimeControl "5400+30"]

{[%evp 11,206,12,16,29,46,28,54,64,58,44,45,49,56,59,64,41,62,49,77,72,116,119,132,124,162,156,150,170,147,185,207,178,194,61,86,32,32,30,33,34,18,0,0,0,0,0,0,0,0,0,0,0,0,0,0,0,28,0,0,0,0,0,0,0,0,0,0,0,0,0,0,-12,-12,-19,-19,-12,-12,-12,-12,-12,0,-12,0,0,0,0,0,0,0,0,0,0,0,0,0,0,0,0,0,0,0,0,0,0,0,0,0,0,0,0,0,0,0,0,0,0,0,0,0,0,0,0,0,0,0,0,0,0,0,0,0,0,0,0,0,0,0,0,0,-12,0,0,0,0,0,0,0,0,0,0,0,0,0,0,0,0,0,-12,0,-54,0,-54,0,0,0,0,0,0,0,0,0,0,0,0,0,0,0,0,0,0,0,0,0,0,0,0,0,0,0,-51,0,-55,0,0,0,-10,0]} 1. e4 {[%emt 0:03:47]} c5 {[%emt 0:00:06]} 2. Nf3 {[%emt 0:00:06]} Nc6 {[%emt 0:00:11]} 3. Nc3 {[%emt 0:01:56]} e6 {[%emt 0:03:43]} 4. d4 {[%emt 0:01:07]} cxd4 {[%emt 0:00:07]} 5. Nxd4 {[%emt 0:00:02]} Qc7 {[%emt 0:01:07]} 6. Be3 {[%emt 0:00:29]} a6 {[%emt 0:00:24]} 7. Qf3 {[%emt 0:00:36]} Bb4 {[%emt 0:02:48]} 8. Nxc6 {[%emt 0:04:56]} bxc6 {[%emt 0:01:22]} 9. Bd4 {[%emt 0:02:14] White is slightly better.} f6 {[%emt 0:05:34] [#]} 10. Bc5 $1 {[%emt 0:37:40]} Qa5 {[%emt 0:06:45]} (10... a5 11. a3) 11. Bxb4 {[%emt 0:00:16]} Qxb4 {[%emt 0:00:01]} 12. O-O-O {[%emt 0:02:10]} Rb8 {[%emt 0:00:20]} 13. b3 {[%emt 0:03:53]} Ne7 {[%emt 0:01:13]} 14. Qg3 {[%emt 0:03:09]} (14. Kb2 {feels hotter.} d5 15. Qg3 Kf7 16. a3) 14... Kf7 {[%emt 0:06:27]} 15. Rd6 {[%emt 0:05:09] White has more active pieces.} Ng6 {[%emt 0:06:03]} 16. Be2 {[%emt 0:00:39]} Qc5 {[%emt 0:06:25]} 17. Rhd1 {[%emt 0:00:31][%cal Bh1d1,Bd1d7,Bd7c7][%mdl 32]} h5 {[%emt 0:01:53]} 18. h4 {[%emt 0:02:49]} Qe5 {[%emt 0:07:16]} 19. Rxd7+ {[%emt 0:06:38]} Bxd7 {[%emt 0:00:30]} 20. Rxd7+ {[%emt 0:00:01]} Ne7 {[%emt 0:02:17] Black is weak on the light squares} 21. f4 {[%emt 0:09:33]} (21. Bxa6 $6 Qxg3 22. fxg3 Rhd8 $16) 21... Qc5 {[%emt 0:00:46]} 22. f5 {[%emt 0:00:01]} (22. Bxa6 Qa3+ 23. Kd2 Qxa6 $11) (22. Qd3 $18) 22... Qe5 $1 $14 {[%emt 0:16:44] [#]} 23. Qxe5 {[%emt 0:03:11]} (23. Bxh5+ $1 $16 Kf8 (23... Rxh5 $2 {perishes.} 24. Qg6+ Kf8 25. Qxh5 $18) 24. Qxe5 fxe5 25. g4) 23... fxe5 {[%emt 0:00:02]} 24. Bc4 {[%emt 0:00:01][%cal Od7d6]} Rhd8 {[%emt 0:00:55]} 25. Rc7 {[%emt 0:02:29]} ({Don't play} 25. Bxe6+ Kf6 26. Ra7 g6 $15) 25... Kf6 {[%emt 0:01:28]} 26. Bxe6 {[%emt 0:00:32]} g6 {[%emt 0:01:44]} 27. Bc4 {[%emt 0:00:20]} Rbc8 {[%emt 0:03:32]} 28. Rxc8 {[%emt 0:00:48]} Nxc8 {[%emt 0:01:08]} 29. fxg6 $11 {[%emt 0:00:08][%mdl 4096] Endgame. KRN-KBN} (29. Bxa6 gxf5 30. exf5 Kxf5) 29... a5 {[%emt 0:00:15]} 30. Bd3 {[%emt 0:01:51]} Rg8 {[%emt 0:00:48]} 31. Be2 {[%emt 0:02:10]} Rxg6 {[%emt 0:24:06]} 32. Bf3 Rg7 {[%emt 0:00:00]} 33. Kd2 {[%emt 0:00:48]} Nb6 {[%emt 0:00:00]} 34. Ne2 {[%emt 0:00:31]} Nd7 {[%emt 0:00:00]} 35. Ke3 {[%emt 0:01:07]} Ke6 {[%emt 0:00:00]} 36. Kf2 {[%emt 0:03:13]} Nf6 {[%emt 0:00:00]} 37. Ng3 {[%emt 0:00:08]} Rh7 {[%emt 0:00:00]} 38. Nf5 {[%emt 0:00:09]} a4 {[%emt 0:00:00]} 39. Ke3 {[%emt 0:00:48]} Rd7 {[%emt 0:00:00]} 40. bxa4 {[%emt 0:01:05]} Ra7 {[%emt 0:00:00]} 41. c3 {[%emt 0:00:23]} Rxa4 {[%emt 0:00:00]} 42. Ng7+ {[%emt 0:00:04]} Ke7 {[%emt 0:00:00]} 43. Nxh5 {[%emt 0:00:01]} Nxh5 {[%emt 0:00:00]} 44. Bxh5 {[%emt 0:00:04]} Rxa2 {[%emt 0:00:00] KR-KB} 45. Be2 {[%emt 0:00:02]} Ra1 {[%emt 0:00:00][%mdl 1024] Black has compensation.} 46. Bf3 {[%emt 0:03:03]} Rh1 {[%emt 0:00:00]} 47. h5 {[%emt 0:00:42]} Kf6 {[%emt 0:00:00]} 48. Kd3 {[%emt 0:00:04]} Rb1 {[%emt 0:00:00]} 49. Kc4 {[%emt 0:00:08]} Rb5 {[%emt 0:00:00]} 50. Bg4 {[%emt 0:00:43]} Ra5 {[%emt 0:00:00]} 51. Bf5 {[%emt 0:01:36] Black must now prevent h6.} Kg5 {[%emt 0:00:01]} 52. g4 {[%emt 0:00:09]} Kh6 {[%emt 0:02:01]} 53. Bd7 {[%emt 0:00:22]} Ra4+ {[%emt 0:00:05]} 54. Kd3 {[%emt 0:00:05]} Ra6 {[%emt 0:00:12]} 55. Kc2 {[%emt 0:01:49]} (55. Kc4 $5 Ra4+ $8 56. Kd3 $11) 55... Rb6 {[%emt 0:00:18]} 56. Bf5 $1 {[%emt 0:00:35]} Kg5 {[%emt 0:00:49]} 57. Kd3 {[%emt 0:00:06]} Ra6 {[%emt 0:00:44]} 58. Kc4 {[%emt 0:00:04]} Ra5 {[%emt 0:00:06]} 59. Bg6 {[%emt 0:01:35]} Kh6 {[%emt 0:00:51]} 60. Kb4 {[%emt 0:00:28]} Rb5+ {[%emt 0:00:08]} 61. Kc4 {[%emt 0:00:12] Threatens to win with Be8.} Ra5 {[%emt 0:00:01]} 62. Be8 {[%emt 0:00:17]} (62. Bf5 $5) 62... Ra4+ {[%emt 0:00:03]} 63. Kd3 $1 {[%emt 0:00:15]} Ra6 {[%emt 0:00:03]} 64. Bf7 {[%emt 0:00:36]} Kg5 {[%emt 0:00:31]} 65. Be6 {[%emt 0:00:04]} Ra4 {[%emt 0:01:39]} 66. Bd7 {[%emt 0:00:32]} Ra6 {[%emt 0:00:15]} 67. Bc8 {[%emt 0:00:20]} Ra7 {[%emt 0:01:40]} 68. Kc2 {[%emt 0:00:36]} Rc7 {[%emt 0:00:41]} 69. Bf5 {[%emt 0:00:07]} Rb7 {[%emt 0:00:04]} 70. Kd3 {[%emt 0:00:14]} Ra7 {[%emt 0:00:11]} 71. Kc4 $1 {[%emt 0:00:06] Kc5 would now be deadly.} Ra5 {[%emt 0:00:22]} 72. Bc8 {[%emt 0:02:12]} Ra4+ {[%emt 0:00:08]} 73. Kd3 {[%emt 0:00:01]} Ra7 {[%emt 0:00:07]} 74. Be6 {[%emt 0:00:30]} Kf6 {[%emt 0:00:26]} 75. Bb3 {[%emt 0:00:28]} Kg5 {[%emt 0:00:15]} 76. Bg8 {[%emt 0:00:17]} Ra5 {[%emt 0:00:51]} 77. Bf7 {[%emt 0:00:23]} Ra7 {[%emt 0:00:46]} 78. Be8 {[%emt 0:00:53]} Ra6 {[%emt 0:02:01]} 79. Bd7 {[%emt 0:00:05]} Kh6 {[%emt 0:00:20]} 80. Bc8 {[%emt 0:01:49]} (80. Kc4 $5 Ra4+ $8 81. Kd3 $11) 80... Ra7 {[%emt 0:00:56]} 81. Kc2 {[%emt 0:00:06]} Rc7 {[%emt 0:00:32]} 82. Bf5 {[%emt 0:01:02] Hoping for Kb3.} Rb7 {[%emt 0:00:07]} 83. Bg6 {[%emt 0:00:02]} Kg5 {[%emt 0:00:17]} 84. Be8 {[%emt 0:00:26]} Rb6 {[%emt 0:01:04]} 85. Bd7 {[%emt 0:00:14]} (85. Bg6 $11) 85... Kh6 {[%emt 0:00:16]} (85... c5 $1 $15) 86. Bc8 {[%emt 0:00:10]} (86. Bf5 $1 $11) 86... Rb8 {[%emt 0:00:47]} (86... c5 $1 $15) 87. Bd7 {[%emt 0:01:11]} Rb6 {[%emt 0:00:15]} 88. Be6 {[%emt 0:00:03]} Kg5 {[%emt 0:00:13]} 89. Kd3 {[%emt 0:00:04]} Ra6 {[%emt 0:00:48]} 90. Bb3 {[%emt 0:00:00]} Ra7 {[%emt 0:00:52]} 91. Be6 {[%emt 0:00:00]} Ra6 {[%emt 0:00:24]} 92. Bd7 {[%emt 0:00:00]} Kh6 {[%emt 0:00:07]} 93. Bc8 {[%emt 0:00:27]} Ra7 {[%emt 0:00:10]} 94. Kc4 {[%emt 0:00:09] And now Kc5 would win.} Ra4+ {[%emt 0:00:12]} 95. Kd3 {[%emt 0:00:03]} Ra7 {[%emt 0:00:02]} 96. Be6 {[%emt 0:00:30]} Kg5 {[%emt 0:00:29]} 97. Bf5 {[%emt 0:00:04]} Ra5 {[%emt 0:01:03]} 98. Kc2 {[%emt 0:00:42]} Rb5 {[%emt 0:00:25]} 99. Bd7 {[%emt 0:00:18]} Rb6 {[%emt 0:00:10]} 100. Kd2 {[%emt 0:02:40]} ({White should play} 100. Kd3 $11 Ra6 101. Bf5) 100... Ra6 {[%emt 0:00:18]} (100... c5 $15 101. Bf5 c4) 101. Ke3 {[%emt 0:00:11]} ({Better is} 101. Bf5 $11) 101... Ra8 {[%emt 0:00:55]} (101... c5 $1 $15) 102. Bf5 {[%emt 0:00:34]} Rd8 {[%emt 0:00:12]} 103. Be6 {[%emt 0:00:16]} Rd6 {[%emt 0:00:10] White really could win this.   Weighted Error Value: White=0.10 (very precise) /Black=0.05 (flawless) .  Mistake:       	White=6     	Black=4      Inaccurate:     	White=1     	Black=4      OK:         	White=30    	Black=32     Best:        	White=3     	Black=5      Strong:       	White=3     	Black=1} 1/2-1/2

[Event "3rd President Cup-A 2024"]
[Site "Tashkent"]
[Date "2024.11.29"]
[Round "9.14"]
[White "Nikitenko, Mihail"]
[Black "Zarubitski, Viachaslau"]
[Result "1-0"]
[ECO "D11"]
[WhiteElo "2490"]
[BlackElo "2389"]
[Annotator "TA"]
[PlyCount "115"]
[EventDate "2024.11.22"]
[EventType "swiss"]
[EventCountry "UZB"]
[SourceTitle "playchess.com"]
[Source "ChessBase"]
[SourceQuality "1"]
[TimeControl "5400+30"]

{[%evp 40,115,0,8,40,35,33,40,87,74,97,46,107,105,108,102,104,106,161,170,174,172,239,225,235,185,481,469,425,424,337,450,459,458,464,485,509,502,504,507,514,508,507,507,507,500,500,495,479,470,497,476,691,681,681,667,676,626,619,566,492,470,470,468,708,680,963,941,948,927,1023,1174,1168,1116,2677,2534,5816,553]} 1. d4 {[%emt 0:00:06]} d5 {[%emt 0:13:42]} 2. c4 {[%emt 0:00:09]} c6 {[%emt 0:00:05]} 3. Nf3 {[%emt 0:00:16]} Nf6 {[%emt 0:00:06]} 4. e3 {[%emt 0:00:16]} Bg4 {[%emt 0:00:18]} 5. Nc3 {[%emt 0:00:16]} e6 {[%emt 0:00:04]} 6. h3 {[%emt 0:00:16]} Bxf3 {[%emt 0:00:04]} 7. Qxf3 {[%emt 0:00:05]} Bb4 {[%emt 0:00:12] D11: Slav Defence: 3 Nf3 sidelines and 3...Nf6 4 e3 Bg4.} 8. Bd2 {[%emt 0:06:12]} Nbd7 {[%emt 0:01:11] 8...Nbd7 scores better than 8...0-0.} 9. Qd1 {[%emt 0:05:24]} O-O {[%emt 0:04:39]} 10. Qb3 {[%emt 0:00:18]} Ba5 $146 {[%emt 0:04:14]} ({Predecessor:} 10... Bxc3 11. Bxc3 Ne4 12. Bd3 Nxc3 13. bxc3 dxc4 14. Qxc4 Qc7 15. a4 Rac8 16. O-O c5 {½-½ Dreev,A (2607)-Gelfand,B (2736) Wch Blitz 2nd 2007 (34)}) 11. Rd1 {[%emt 0:06:00]} e5 {[%emt 0:15:36]} 12. dxe5 {[%emt 0:02:33]} dxc4 {[%emt 0:00:44]} 13. Bxc4 {[%emt 0:00:47]} Nxe5 {[%emt 0:00:03]} 14. Be2 {[%emt 0:00:06]} Nd3+ {[%emt 0:08:03]} 15. Kf1 {[%emt 0:00:12]} Nc5 {[%emt 0:00:57]} 16. Qc4 {[%emt 0:00:57]} Ncd7 {[%emt 0:03:49]} 17. b4 {[%emt 0:01:28]} Bb6 {[%emt 0:02:46]} 18. g3 {[%emt 0:00:08]} Qe7 {[%emt 0:01:02]} 19. Kg2 {[%emt 0:02:26]} Rfe8 {[%emt 0:05:31]} 20. Qb3 {[%emt 0:02:55]} Rad8 {[%emt 0:02:34]} 21. Bc1 {[%emt 0:04:27]} Ne4 {[%emt 0:10:40]} 22. Nxe4 {[%emt 0:02:21]} Qxe4+ {[%emt 0:00:02]} 23. Bf3 {[%emt 0:00:07]} Qg6 {[%emt 0:01:06]} (23... Qf5 $14) 24. Bb2 $16 {[%emt 0:00:48]} Bc7 {[%emt 0:01:53]} 25. Rd2 {[%emt 0:09:21]} (25. Rd4 $16 {Black must now prevent Rg4.} Nf6 26. Rxd8 Rxd8 27. Rd1) 25... Ne5 {[%emt 0:03:11]} (25... Nf6 $14 26. Rhd1 Rc8) 26. Bxe5 $16 {[%emt 0:00:17]} Bxe5 {[%emt 0:02:41]} 27. Rhd1 {[%emt 0:00:09]} Rxd2 {[%emt 0:08:14]} 28. Rxd2 {[%emt 0:00:11]} h5 {[%emt 0:02:27]} (28... Bd6 $16) 29. Rd7 $18 {[%emt 0:02:57]} h4 {[%emt 0:00:03]} 30. g4 $1 {[%emt 0:00:06]} (30. Rxb7 hxg3 31. Bg4 gxf2 32. Kxf2 Bf6 $17) 30... Bd6 {[%emt 0:07:35]} (30... Qe6 {was necessary.} 31. Rxb7 Qxb3 32. axb3 Rb8 33. Rxa7 (33. Bxc6 Rxb7 34. Bxb7 g5 $16) 33... Rxb4 34. Bxc6 Rxb3) 31. Rxb7 $18 {[%emt 0:01:17]} Re7 {[%emt 0:00:08]} 32. Bxc6 {[%emt 0:04:28]} Bxb4 $2 {[%emt 0:00:08]} (32... Qf6 33. Rxe7 Qxe7) 33. Rb8+ $18 {[%emt 0:00:15]} Kh7 {[%emt 0:00:19]} 34. Bb5 {[%emt 0:00:12]} (34. Qxb4 Qxc6+ 35. Kh2 Qc7+ 36. Kg2 Qc6+ 37. Kh2 Qc7+ 38. Qf4 Qxf4+ 39. exf4 Re2 $11) 34... Qe4+ {[%emt 0:01:31] [#]} 35. Kg1 $1 {[%emt 0:04:45]} ({Inferior is} 35. f3 Qe5 36. Bd3+ (36. Qxb4 Qg3+ 37. Kf1 Qxf3+ 38. Ke1 Qxe3+ 39. Kd1 Re4 $17) 36... g6 37. Rxb4 (37. Qxb4 $2 {too greedy.} Qg3+ 38. Kf1 Qxf3+ 39. Ke1 Rxe3+ 40. Kd2 Rxd3+ 41. Kc1 Qe3+ 42. Kb1 Rd1+ 43. Kb2 Rd2+ $19) 37... Qg3+ 38. Kf1 Qxh3+ 39. Ke1 Rxe3+ (39... Qxf3 40. Be2 $11) 40. Kd2 Rxf3 $11) 35... Rc7 {[%emt 0:00:03]} 36. Qxb4 {[%emt 0:01:32]} Rc1+ {[%emt 0:00:50]} 37. Bf1 {[%emt 0:00:05]} Qd3 {[%emt 0:00:02] [#]} 38. Qb5 $1 {[%emt 0:00:12]} Rxf1+ {[%emt 0:00:29]} 39. Kg2 {[%emt 0:00:05]} Qxb5 {[%emt 0:00:19]} 40. Rxb5 {[%emt 0:00:04]} Rc1 {[%emt 0:00:08]} 41. Rb7 {[%emt 0:00:07]} a5 {[%emt 0:00:21]} 42. Rb5 {[%emt 0:00:06]} a4 {[%emt 0:00:31]} 43. Rb4 {[%emt 0:00:05]} a3 {[%emt 0:00:06]} 44. Rb3 {[%emt 0:00:04]} Rc2 {[%emt 0:00:52]} 45. Rxa3 {[%emt 0:00:03]} g5 {[%emt 0:02:01]} (45... Kg6 $142 46. Ra7 Rb2) 46. Ra5 {[%emt 0:00:07]} Kg6 {[%emt 0:00:03]} 47. Kf3 {[%emt 0:00:06]} Rc1 {[%emt 0:00:08]} 48. Ra6+ {[%emt 0:00:32]} Kg7 {[%emt 0:00:07]} 49. a4 {[%emt 0:03:10]} Rh1 {[%emt 0:00:10]} 50. Ra5 {[%emt 0:01:10]} (50. Kg2 Ra1 51. a5 Ra4) 50... Kg6 {[%emt 0:00:06]} 51. Rf5 {[%emt 0:01:17]} Ra1 {[%emt 0:00:13]} (51... Rd1 $142 52. Ke4 f6) 52. a5 $18 {[%emt 0:00:05]} Re1 {[%emt 0:00:27]} 53. Ke4 {[%emt 0:00:29]} Rh1 {[%emt 0:00:02]} 54. Rb5 {[%emt 0:00:31]} f6 {[%emt 0:00:50]} 55. a6 {[%emt 0:01:52]} Ra1 {[%emt 0:00:07]} 56. Rb6 {[%emt 0:00:03]} Ra2 {[%emt 0:00:16]} 57. Kd5 {[%emt 0:00:04]} Rxf2 {[%emt 0:00:23]} 58. Ke4 {[%emt 0:45:10]} (58. Kc6 $142 f5 59. a7) 1-0

[Event "3rd President Cup-A 2024"]
[Site "Tashkent"]
[Date "2024.11.29"]
[Round "9.15"]
[White "Goganov, Aleksey"]
[Black "Soham Kamotra"]
[Result "1/2-1/2"]
[ECO "E17"]
[WhiteElo "2465"]
[BlackElo "2420"]
[Annotator "TA"]
[PlyCount "46"]
[EventDate "2024.11.22"]
[EventType "swiss"]
[EventCountry "UZB"]
[SourceTitle "playchess.com"]
[Source "ChessBase"]
[SourceQuality "1"]
[TimeControl "5400+30"]

{[%evp 13,46,14,21,20,20,18,18,4,0,0,0,0,27,25,35,35,42,7,8,4,10,6,14,14,14,0,0,0,7,0,0,0,1,-8,0]} 1. d4 {[%emt 0:00:05]} Nf6 {[%emt 0:00:19]} 2. c4 {[%emt 0:00:09]} e6 {[%emt 0:00:07]} 3. Nf3 {[%emt 0:00:05]} b6 {[%emt 0:00:02]} 4. g3 {[%emt 0:00:08]} Bb7 {[%emt 0:00:02]} 5. Bg2 {[%emt 0:00:05]} Be7 {[%emt 0:00:03]} 6. O-O {[%emt 0:00:06]} O-O {[%emt 0:00:04]} 7. Re1 {[%emt 0:00:13]} Qc8 {[%emt 0:00:04]} 8. Nc3 {[%emt 0:00:12]} Ne4 {[%emt 0:00:05]} 9. Bd2 {[%emt 0:00:13]} f5 {[%emt 0:02:25]} 10. Ne5 {[%emt 0:07:11]} d6 {[%emt 0:02:07]} 11. Nd3 {[%emt 0:00:17]} Bf6 {[%emt 0:00:33]} 12. e3 {[%emt 0:04:51]} Nxc3 {[%emt 0:34:43]} 13. Bxc3 {[%emt 0:00:19]} Bxg2 {[%emt 0:00:04]} 14. Kxg2 {[%emt 0:00:07]} Qb7+ {[%emt 0:00:02]} 15. Qf3 {[%emt 0:01:00]} Qxf3+ {[%emt 0:00:06] The position is equal.} 16. Kxf3 {[%emt 0:00:05]} Nd7 {[%emt 0:02:33]} 17. Kg2 {[%emt 0:03:59]} c5 {[%emt 0:07:44]} 18. Rac1 {[%emt 0:00:40]} Kf7 {[%emt 0:00:56]} 19. dxc5 {[%emt 0:07:45]} Nxc5 {[%emt 0:00:38]} 20. Red1 {[%emt 0:00:35]} Rfd8 {[%emt 0:01:13]} 21. Bxf6 {[%emt 0:03:10]} Kxf6 {[%emt 0:00:08]} 22. Nf4 {[%emt 0:01:08]} Rac8 {[%emt 0:02:46]} 23. h4 {[%emt 0:00:50]} g6 {[%emt 0:00:22] Weighted Error Value: White=0.07 (flawless) /Black=0.05 (flawless) .  Inaccurate:     	White=1     	Black=1      OK:         	White=4     	Black=4} 1/2-1/2